bitfinex/quotes_BTCUSD_20250907
["timestamp","ask_amount","ask_price","bid_price","bid_amount"]
[1757240206667,0.18306083,111160.0,111150.0,1.04810217]
[1757240207103,0.18625083,111160.0,111150.0,0.49790217]
[1757240207374,0.18625083,111160.0,111150.0,0.64806217]
[1757240209212,0.18306083,111160.0,111150.0,0.64806217]
[1757240211153,0.18306083,111160.0,111150.0,1.04806217]
[1757240211338,0.18625083,111160.0,111150.0,1.04806217]
[1757240213210,0.18306083,111160.0,111150.0,1.04806217]
[1757240214136,0.18625083,111160.0,111150.0,1.04806217]
[1757240214318,0.18306083,111160.0,111150.0,1.04806217]
[1757240216662,0.18625083,111160.0,111150.0,1.04806217]
[1757240216821,0.18625083,111160.0,111150.0,1.04794217]
[1757240218085,0.18306083,111160.0,111150.0,1.04794217]
[1757240219788,0.18625083,111160.0,111150.0,1.04794217]
[1757240220190,0.18306083,111160.0,111150.0,1.04794217]
[1757240221254,0.18306083,111160.0,111150.0,0.64794217]
[1757240221787,0.18306083,111160.0,111150.0,1.04794217]
[1757240224591,0.18306083,111160.0,111150.0,1.06594217]
[1757240224788,0.18306083,111160.0,111150.0,1.04794217]
[1757240225702,0.18625083,111160.0,111150.0,1.04794217]
[1757240225918,0.18306083,111160.0,111150.0,1.04794217]
[1757240226741,0.21006055,111160.0,111150.0,1.04794217]
[1757240228467,0.21305055,111160.0,111150.0,1.04794217]
[1757240228694,0.21006055,111160.0,111150.0,1.04794217]
[1757240228886,0.21305055,111160.0,111150.0,1.04794217]
[1757240229242,0.21006055,111160.0,111150.0,1.04794217]
[1757240229843,0.21006055,111160.0,111150.0,0.64794217]
[1757240233034,0.21006055,111160.0,111150.0,0.65316217]
[1757240233746,0.21006055,111160.0,111150.0,0.64794217]
[1757240233969,0.21305055,111160.0,111150.0,0.64794217]
[1757240234297,0.21006055,111160.0,111150.0,0.64794217]
[1757240242085,0.21006055,111160.0,111150.0,0.64999217]
[1757240242972,0.21006055,111160.0,111150.0,0.64794217]
[1757240243591,0.21006055,111160.0,111150.0,0.65316217]
[1757240244001,0.21006055,111160.0,111150.0,0.64794217]
[1757240245326,0.21006055,111160.0,111150.0,0.65316217]
[1757240246282,0.21006055,111160.0,111150.0,0.64794217]
[1757240247698,0.21006055,111160.0,111150.0,0.65316217]
[1757240249005,0.21006055,111160.0,111150.0,0.64794217]
[1757240258109,0.21006055,111160.0,111150.0,0.65308217]
[1757240263731,0.20792055,111160.0,111150.0,0.65308217]
[1757240264477,0.20792055,111160.0,111150.0,1.05308217]
[1757240264866,0.20792055,111160.0,111150.0,0.65308217]
[1757240265342,0.20792055,111160.0,111150.0,1.05308217]
[1757240265971,0.20792055,111160.0,111150.0,0.65308217]
[1757240288323,0.001,111160.0,111150.0,5.79327097]
[1757240288741,0.001,111160.0,111150.0,6.22026661]
[1757240289307,0.001,111160.0,111150.0,6.40020363]
[1757240289507,0.001,111160.0,111150.0,6.22026661]
[1757240290162,0.001,111160.0,111150.0,6.21428043]
[1757240291958,0.001,111160.0,111150.0,6.39421745]
[1757240294134,0.001,111160.0,111150.0,6.21428043]
[1757240298200,0.001,111160.0,111150.0,6.21372043]
[1757240298759,0.001,111160.0,111150.0,6.21368043]
[1757240298964,0.001,111160.0,111150.0,6.48018043]
[1757240299758,0.001,111160.0,111150.0,6.66011745]
[1757240310292,0.001,111160.0,111150.0,6.48018043]
[1757240311195,0.001,111160.0,111150.0,6.66011745]
[1757240314076,0.001,111160.0,111150.0,6.48018043]
[1757240330624,0.001,111160.0,111150.0,6.54922043]
[1757240335381,0.001,111160.0,111150.0,6.72915745]
[1757240335526,0.001,111160.0,111150.0,6.54922043]
[1757240338624,0.001,111160.0,111150.0,6.72915745]
[1757240339834,0.001,111160.0,111150.0,6.54922043]
[1757240342394,0.001,111160.0,111150.0,6.72915745]
[1757240343660,0.001,111160.0,111150.0,6.70216181]
[1757240345537,0.001,111160.0,111150.0,6.52222479]
[1757240347253,0.001,111160.0,111150.0,6.70216181]
[1757240351410,0.001,111160.0,111150.0,6.70216181]
[1757240352668,0.001,111160.0,111150.0,6.52222479]
[1757240353971,0.001,111160.0,111150.0,6.70216181]
[1757240354481,0.001,111160.0,111150.0,6.52222479]
[1757240355097,0.001,111160.0,111150.0,6.70216181]
[1757240358281,0.001,111160.0,111150.0,6.52222479]
[1757240358695,0.001,111160.0,111150.0,6.70216181]
[1757240360622,0.001,111160.0,111150.0,6.52222479]
[1757240361673,0.001,111160.0,111150.0,6.70216181]
[1757240369581,0.001,111160.0,111150.0,6.32814479]
[1757240369786,0.001,111160.0,111150.0,6.47750479]
[1757240372344,0.001,111160.0,111150.0,6.50450043]
[1757240373998,0.02799633,111160.0,111150.0,6.50450043]
[1757240374206,0.20791716,111160.0,111150.0,6.50450043]
[1757240374369,0.02799633,111160.0,111150.0,6.50450043]
[1757240375195,0.20791716,111160.0,111150.0,6.50450043]
[1757240375409,0.21001716,111160.0,111150.0,6.50450043]
[1757240375626,0.21001716,111160.0,111150.0,6.47750479]
[1757240377309,0.03009633,111160.0,111150.0,6.47750479]
[1757240377929,0.02799633,111160.0,111150.0,6.47750479]
[1757240391020,0.02799633,111160.0,111150.0,6.65744181]
[1757240394977,0.02799633,111160.0,111150.0,6.69763181]
[1757240396174,0.02799633,111160.0,111150.0,6.36833479]
[1757240396385,0.02799633,111160.0,111150.0,6.47750479]
[1757240396817,0.02799633,111160.0,111150.0,6.50450179]
[1757240397842,0.02799633,111160.0,111150.0,6.68443881]
[1757240408070,0.02799633,111160.0,111150.0,6.72432881]
[1757240412978,0.02799633,111160.0,111150.0,6.57496881]
[1757240413206,0.02799633,111160.0,111150.0,6.72428881]
[1757240435808,0.001,111160.0,111150.0,6.72428881]
[1757240476156,0.18308083,111160.0,111150.0,1.34377299]
[1757240476376,0.18617083,111160.0,111150.0,0.642817]
[1757240476599,0.21317109,111160.0,111150.0,0.61582]
[1757240477029,0.21317109,111160.0,111150.0,0.34932]
[1757240478124,0.21317109,111160.0,111150.0,0.2]
[1757240478343,0.21317109,111160.0,111150.0,0.34932]
[1757240478574,0.21317109,111160.0,111150.0,0.36464296]
[1757240479894,0.21317109,111160.0,111150.0,0.38264296]
[1757240480147,0.21317109,111160.0,111150.0,0.36464296]
[1757240481651,0.21317109,111160.0,111150.0,0.21532296]
[1757240481881,0.21317109,111160.0,111150.0,0.36464296]
[1757240482320,0.21684211,111160.0,111150.0,0.2]
[1757240487586,0.36616211,111160.0,111150.0,0.2]
[1757240490385,0.18360804,111150.0,111140.0,0.15528899]
[1757240490640,0.18885804,111150.0,111140.0,0.15528899]
[1757240491018,0.21586657,111150.0,111140.0,0.15528899]
[1757240491687,0.21586657,111150.0,111140.0,0.15628899]
[1757240492057,0.21586657,111150.0,111140.0,0.15528899]
[1757240493419,0.36518657,111150.0,111140.0,0.15528899]
[1757240494335,0.36618657,111150.0,111140.0,0.15528899]
[1757240495361,0.36818657,111150.0,111140.0,0.15528899]
[1757240496359,0.46010256,111150.0,111140.0,0.00528899]
[1757240514482,0.17995321,111140.0,111130.0,0.2]
[1757240514684,0.18299321,111140.0,111130.0,0.2]
[1757240514883,0.18506321,111140.0,111130.0,0.2]
[1757240515094,0.21207256,111140.0,111130.0,0.2]
[1757240515682,0.21211904,111140.0,111130.0,0.2]
[1757240523796,0.36143904,111140.0,111130.0,0.2]
[1757240536385,0.35839904,111140.0,111130.0,0.2]
[1757240536804,0.36141904,111140.0,111130.0,0.2]
[1757240553929,0.1799694,111130.0,111110.0,0.32451885]
[1757240554135,0.1850456,111120.0,111110.0,0.40475885]
[1757240554786,0.21205665,111120.0,111110.0,0.25543885]
[1757240555008,0.21205665,111120.0,111110.0,0.40675885]
[1757240555459,0.21205665,111120.0,111110.0,0.40475885]
[1757240555894,0.21205665,111120.0,111110.0,0.40875885]
[1757240556119,0.21205665,111120.0,111110.0,0.40675885]
[1757240556339,0.21205665,111120.0,111110.0,0.40875885]
[1757240557850,0.21205665,111120.0,111110.0,0.41698864]
[1757240558294,0.21205665,111120.0,111110.0,0.40575885]
[1757240558498,0.21205665,111120.0,111110.0,0.40675885]
[1757240558708,0.21205665,111120.0,111110.0,0.40575885]
[1757240558925,0.21205665,111120.0,111110.0,0.40475885]
[1757240559408,0.21205665,111120.0,111110.0,0.01525373]
[1757240559623,0.36137665,111120.0,111110.0,0.21525373]
[1757240563528,0.36337665,111120.0,111110.0,0.21525373]
[1757240564344,0.36437665,111120.0,111110.0,0.21525373]
[1757240565227,0.37446481,111120.0,111110.0,0.21525373]
[1757240568630,0.37446481,111120.0,111110.0,0.36453373]
[1757240569318,0.37446481,111120.0,111110.0,0.21525373]
[1757240569528,0.37446481,111120.0,111110.0,0.36453373]
[1757240569937,0.37813583,111120.0,111110.0,0.2]
[1757240570483,0.37809583,111120.0,111110.0,0.2]
[1757240574881,0.180018,111100.0,111090.0,0.26908]
[1757240575085,0.182058,111100.0,111090.0,0.41836]
[1757240575501,0.20907516,111100.0,111090.0,0.41836]
[1757240576161,0.20912162,111100.0,111090.0,0.41936]
[1757240577988,0.20912162,111100.0,111090.0,0.42036]
[1757240578676,0.20912162,111100.0,111090.0,0.41936]
[1757240578890,0.20912162,111100.0,111090.0,0.41836]
[1757240579116,0.20912162,111100.0,111090.0,0.41936]
[1757240579826,0.20912162,111100.0,111090.0,0.42036]
[1757240583489,0.02712945,111100.0,111090.0,0.42036]
[1757240583689,0.20714745,111100.0,111090.0,0.4256]
[1757240584469,0.20714745,111100.0,111090.0,0.4246]
[1757240584672,0.20708162,111100.0,111090.0,0.4246]
[1757240585038,0.20708162,111100.0,111090.0,0.4256]
[1757240585259,0.20708162,111100.0,111090.0,0.51651599]
[1757240585484,0.20708162,111100.0,111090.0,0.51751599]
[1757240585722,0.20708162,111100.0,111090.0,0.69755019]
[1757240587539,0.20708162,111100.0,111090.0,0.51751599]
[1757240605928,0.20708162,111100.0,111090.0,0.51751599]
[1757240608401,0.20708162,111100.0,111090.0,0.69755019]
[1757240618403,0.20708162,111100.0,111090.0,0.62847019]
[1757240621901,0.20708162,111100.0,111090.0,0.44843599]
[1757240622130,0.20708162,111100.0,111090.0,0.62847019]
[1757240635035,0.20906162,111100.0,111090.0,0.202]
[1757240635254,0.20906162,111100.0,111090.0,0.35124]
[1757240636223,0.21045162,111100.0,111090.0,0.35124]
[1757240637312,0.35969162,111100.0,111090.0,0.35124]
[1757240638237,0.35969162,111100.0,111090.0,0.202]
[1757240638478,0.35969162,111100.0,111090.0,0.35124]
[1757240639355,0.35969162,111100.0,111090.0,0.35024]
[1757240639555,0.35969162,111100.0,111090.0,0.35124]
[1757240640092,0.35969162,111100.0,111090.0,0.35024]
[1757240640320,0.35969162,111100.0,111090.0,0.35124]
[1757240641127,0.35969162,111100.0,111090.0,0.002]
[1757240642941,0.35969162,111100.0,111090.0,0.001]
[1757240643856,0.35969162,111100.0,111090.0,0.002]
[1757240644264,0.35969162,111100.0,111090.0,0.001]
[1757240644611,0.1800342,111090.0,111080.0,0.54012412]
[1757240644820,0.00198,111090.0,111080.0,0.54012412]
[1757240645026,0.1820142,111090.0,111080.0,0.54012412]
[1757240645229,0.20903301,111090.0,111080.0,0.49924]
[1757240646607,0.20903301,111090.0,111080.0,0.50024]
[1757240647744,0.20903301,111090.0,111080.0,0.50124]
[1757240648362,0.20903301,111090.0,111080.0,0.50024]
[1757240649000,0.20903301,111090.0,111080.0,0.49924]
[1757240651352,0.20903301,111090.0,111080.0,0.35]
[1757240651551,0.20903301,111090.0,111080.0,0.49924]
[1757240652666,0.20903301,111090.0,111080.0,0.50024]
[1757240653248,0.20903301,111090.0,111080.0,0.49924]
[1757240659364,0.20705301,111090.0,111080.0,0.50427]
[1757240660341,0.20705301,111090.0,111080.0,0.50527]
[1757240660518,0.20705301,111090.0,111080.0,0.50627]
[1757240661069,0.20705301,111090.0,111080.0,0.50527]
[1757240661445,0.20705301,111090.0,111080.0,0.50627]
[1757240661650,0.20705301,111090.0,111080.0,0.50527]
[1757240662056,0.20705301,111090.0,111080.0,0.50627]
[1757240662294,0.20693155,111090.0,111080.0,0.50627]
[1757240666231,0.20891155,111090.0,111080.0,0.50627]
[1757240667895,0.20891155,111090.0,111080.0,0.50421]
[1757240669830,0.20891155,111090.0,111080.0,0.50124]
[1757240670069,0.20891155,111090.0,111080.0,0.352]
[1757240670290,0.20891155,111090.0,111080.0,0.50124]
[1757240670503,0.20891155,111090.0,111080.0,0.352]
[1757240670712,0.21030155,111090.0,111080.0,0.352]
[1757240671191,0.20891155,111090.0,111080.0,0.351]
[1757240671447,0.21030155,111090.0,111080.0,0.2]
[1757240671651,0.21030155,111090.0,111080.0,0.202]
[1757240672122,0.21030155,111090.0,111080.0,0.201]
[1757240672566,0.21030155,111090.0,111080.0,0.202]
[1757240674620,0.21397257,111090.0,111080.0,0.202]
[1757240675070,0.21397257,111090.0,111080.0,0.201]
[1757240675266,0.21397257,111090.0,111080.0,0.202]
[1757240675497,0.21397257,111090.0,111080.0,0.201]
[1757240676266,0.21397257,111090.0,111080.0,0.202]
[1757240677206,0.21397257,111090.0,111080.0,0.201]
[1757240677451,0.21397257,111090.0,111080.0,0.202]
[1757240677632,0.36321257,111090.0,111080.0,0.201]
[1757240677856,0.36321257,111090.0,111080.0,0.202]
[1757240679140,0.36321257,111090.0,111080.0,0.201]
[1757240679312,0.45512856,111090.0,111080.0,0.001]
[1757240680079,0.18006662,111070.0,111060.0,0.35]
[1757240680302,0.33128662,111070.0,111060.0,0.35]
[1757240680777,0.35831157,111070.0,111060.0,0.35]
[1757240681462,0.35831157,111070.0,111060.0,0.351]
[1757240682114,0.36809119,111070.0,111060.0,0.351]
[1757240682450,0.36809119,111070.0,111060.0,0.202]
[1757240684170,0.21885119,111070.0,111060.0,0.202]
[1757240684431,0.36948119,111070.0,111060.0,0.202]
[1757240684700,0.36948119,111070.0,111060.0,0.402]
[1757240688444,0.37315221,111070.0,111060.0,0.402]
[1757240690976,0.37315221,111070.0,111060.0,0.202]
[1757240691162,0.4650682,111070.0,111060.0,0.202]
[1757240691367,0.3158282,111070.0,111060.0,0.202]
[1757240691668,0.4651082,111070.0,111060.0,0.202]
[1757240692330,0.4651082,111070.0,111060.0,0.201]
[1757240692842,0.4671082,111070.0,111060.0,0.2]
[1757240693259,0.3188282,111070.0,111060.0,0.2]
[1757240693466,0.4681082,111070.0,111060.0,0.2]
[1757240697319,0.3188282,111070.0,111060.0,0.2]
[1757240697548,0.4681082,111070.0,111060.0,0.2]
[1757240704666,0.3188282,111070.0,111060.0,0.2]
[1757240704865,0.4681082,111070.0,111060.0,0.2]
[1757240705266,0.36135157,111070.0,111060.0,0.20208]
[1757240705435,0.35937157,111070.0,111060.0,0.40516]
[1757240705663,0.35937157,111070.0,111060.0,0.55516]
[1757240706073,0.21009157,111070.0,111060.0,0.55516]
[1757240706337,0.35937157,111070.0,111060.0,0.55516]
[1757240715802,0.36135157,111070.0,111060.0,0.55516]
[1757240716268,0.36135157,111070.0,111060.0,0.55]
[1757240749211,0.36135157,111070.0,111060.0,0.55312]
[1757240754095,0.36135157,111070.0,111060.0,0.55527]
[1757240754281,0.35751846,111070.0,111060.0,0.55527]
[1757240756776,0.35747846,111070.0,111060.0,0.55527]
[1757240763672,0.35747846,111070.0,111060.0,0.55312]
[1757240763843,0.35747846,111070.0,111060.0,0.55]
[1757240764906,0.35747846,111070.0,111060.0,0.55312]
[1757240770012,0.35747846,111070.0,111060.0,0.55508]
[1757240775512,0.14066105,111070.0,111060.0,0.55508]
[1757240775776,0.34775267,111070.0,111060.0,0.55508]
[1757240775977,0.34775267,111070.0,111060.0,0.55312]
[1757240778187,0.34739433,111070.0,111060.0,0.55312]
[1757240785294,0.34739433,111070.0,111060.0,0.55508]
[1757240785718,0.27337496,111070.0,111060.0,0.55508]
[1757240797514,0.27337496,111070.0,111060.0,0.55312]
[1757240803851,0.27328896,111070.0,111060.0,0.55312]
[1757240804018,0.27328896,111070.0,111060.0,0.35312]
[1757240804448,0.27328896,111070.0,111060.0,0.15312]
[1757240804649,0.27328896,111070.0,111060.0,0.35312]
[1757240805122,0.27328896,111070.0,111060.0,0.15312]
[1757240805248,0.27328896,111070.0,111060.0,0.35]
[1757240805679,0.27328896,111070.0,111060.0,0.35306]
[1757240812739,0.27695998,111070.0,111060.0,0.35]
[1757240813368,0.27695998,111070.0,111060.0,0.35306]
[1757240814430,0.27695998,111070.0,111060.0,0.35]
[1757240818791,0.27695998,111070.0,111060.0,0.35306]
[1757240822902,0.27695998,111070.0,111060.0,0.35517]
[1757240826626,0.27695998,111070.0,111060.0,0.35]
[1757240827381,0.27695998,111070.0,111060.0,0.35324]
[1757240835589,0.27695998,111070.0,111060.0,0.35538]
[1757240838921,0.27695998,111070.0,111060.0,0.35324]
[1757240841515,0.27695998,111070.0,111060.0,0.35538]
[1757240843387,0.27695998,111070.0,111060.0,0.35324]
[1757240849573,0.12775998,111070.0,111060.0,0.35324]
[1757240849770,0.27691998,111070.0,111060.0,0.35324]
[1757240850018,0.27691998,111070.0,111060.0,0.35538]
[1757240863713,0.27691998,111070.0,111060.0,0.35538]
[1757240869435,0.27691998,111070.0,111060.0,0.35324]
[1757240880622,0.27691998,111070.0,111060.0,0.35]
[1757240881281,0.27687998,111070.0,111060.0,0.35]
[1757240886218,0.0792047,111070.0,111060.0,0.35]
[1757240886427,0.10623169,111070.0,111060.0,0.35]
[1757240886629,0.28629831,111070.0,111060.0,0.35]
[1757240893159,0.3782143,111070.0,111060.0,0.35]
[1757240904721,0.2990096,111070.0,111060.0,0.35]
[1757240904951,0.4480896,111070.0,111060.0,0.35]
[1757240906067,0.2990096,111070.0,111060.0,0.35]
[1757240906280,0.4480896,111070.0,111060.0,0.35]
[1757240930422,0.22236552,111070.0,111060.0,0.35]
[1757240930626,0.42946106,111070.0,111060.0,0.35]
[1757240939888,0.42946106,111070.0,111060.0,0.353]
[1757240943594,0.42946106,111070.0,111060.0,0.35]
[1757240951825,0.42946106,111070.0,111060.0,0.35518]
[1757240954914,0.42946106,111070.0,111060.0,0.35]
[1757240961465,0.49862106,111070.0,111060.0,0.35]
[1757240967825,0.42533554,111070.0,111060.0,0.35]
[1757240970566,0.27625554,111070.0,111060.0,0.35]
[1757240970802,0.42529554,111070.0,111060.0,0.35]
[1757240979330,0.27625554,111070.0,111060.0,0.35]
[1757240979536,0.42529554,111070.0,111060.0,0.35]
[1757240992737,0.27625554,111070.0,111060.0,0.35]
[1757240992966,0.42529554,111070.0,111060.0,0.3551]
[1757240993955,0.42529554,111070.0,111060.0,0.35296]
[1757240996673,0.35613554,111070.0,111060.0,0.35296]
[1757240998514,0.35613554,111070.0,111060.0,0.3551]
[1757241002793,0.20709554,111070.0,111060.0,0.3551]
[1757241003013,0.35613554,111070.0,111060.0,0.3551]
[1757241003220,0.20709554,111070.0,111060.0,0.5551]
[1757241003655,0.35613554,111070.0,111060.0,0.5551]
[1757241006311,0.20709554,111070.0,111060.0,0.5551]
[1757241006510,0.35613554,111070.0,111060.0,0.5551]
[1757241006719,0.20709554,111070.0,111060.0,0.5551]
[1757241006964,0.35613554,111070.0,111060.0,0.5551]
[1757241007493,0.20709554,111070.0,111060.0,0.5551]
[1757241007759,0.35613554,111070.0,111060.0,0.5551]
[1757241022347,0.20709554,111070.0,111060.0,0.5551]
[1757241022558,0.35609554,111070.0,111060.0,0.59029]
[1757241025784,0.16031062,111070.0,111060.0,0.59029]
[1757241025985,0.34037724,111070.0,111060.0,0.59029]
[1757241028684,0.01131062,111070.0,111060.0,1.01128882]
[1757241028904,0.18005365,111080.0,111060.0,1.01128882]
[1757241029114,0.18005041,111080.0,111070.0,0.77069745]
[1757241029323,0.18005041,111080.0,111070.0,0.77059662]
[1757241030175,0.36493638,111090.0,111070.0,0.88953453]
[1757241030461,0.18005041,111080.0,111070.0,0.85434453]
[1757241030631,0.18005041,111080.0,111070.0,0.85115453]
[1757241031050,0.18105041,111080.0,111070.0,0.88634453]
[1757241031262,0.18105041,111080.0,111070.0,0.88953453]
[1757241031467,0.18005041,111080.0,111070.0,1.03853453]
[1757241031664,0.18005041,111080.0,111070.0,1.03953453]
[1757241033567,0.18005041,111080.0,111070.0,1.07957624]
[1757241034046,0.18005041,111080.0,111070.0,0.93057624]
[1757241034228,0.18005041,111080.0,111070.0,1.07957624]
[1757241035989,0.18005041,111080.0,111070.0,1.10730383]
[1757241039951,0.18005041,111080.0,111070.0,0.92723721]
[1757241042013,0.18005041,111080.0,111070.0,1.10730383]
[1757241043885,0.18005041,111080.0,111070.0,0.92723721]
[1757241046379,0.18005041,111080.0,111070.0,1.10730383]
[1757241048008,0.18005041,111080.0,111070.0,0.95830383]
[1757241048222,0.18005041,111080.0,111070.0,1.10726383]
[1757241048439,0.18005041,111080.0,111070.0,0.77823721]
[1757241048662,0.18005041,111080.0,111070.0,0.92719721]
[1757241079656,0.18455568,111100.0,111090.0,0.55]
[1757241079859,0.18455568,111100.0,111090.0,0.70396]
[1757241079860,0.15753538,111100.0,111090.0,0.70396]
[1757241080934,0.15953538,111100.0,111090.0,0.70396]
[1757241081562,0.002,111100.0,111090.0,0.8839942]
[1757241081772,0.002,111100.0,111090.0,1.01075019]
[1757241081910,0.004,111100.0,111090.0,1.01075019]
[1757241082335,0.004,111100.0,111090.0,1.03776462]
[1757241082542,0.002,111100.0,111090.0,1.03776462]
[1757241082979,0.003,111100.0,111090.0,1.03776462]
[1757241084084,0.001,111100.0,111090.0,1.03776462]
[1757241084289,0.002,111100.0,111090.0,1.03776462]
[1757241084489,0.001,111100.0,111090.0,1.03776462]
[1757241084723,0.18000216,111110.0,111100.0,0.180018]
[1757241084873,0.18000216,111110.0,111100.0,0.32944334]
[1757241085082,0.18000216,111110.0,111100.0,0.36928334]
[1757241086251,0.18100216,111110.0,111100.0,0.36928334]
[1757241087521,0.18100216,111110.0,111100.0,0.18926534]
[1757241087991,0.18200216,111110.0,111100.0,0.36928334]
[1757241091633,0.1820018,111110.0,111100.0,0.39629772]
[1757241092061,0.1820018,111110.0,111100.0,0.43611007]
[1757241093271,0.002,111110.0,111100.0,0.52802606]
[1757241094442,0.18898488,111120.0,111110.0,0.7300018]
[1757241094661,0.18898488,111120.0,111110.0,0.7319718]
[1757241094862,0.18898488,111120.0,111110.0,0.7350018]
[1757241095091,0.18898488,111120.0,111110.0,0.7620132]
[1757241095609,0.18998488,111120.0,111110.0,0.7620132]
[1757241096197,0.19098488,111120.0,111110.0,0.5820114]
[1757241096420,0.19098488,111120.0,111110.0,0.7620132]
[1757241099426,0.19098488,111120.0,111110.0,0.5820114]
[1757241100067,0.19098488,111120.0,111110.0,0.7620132]
[1757241100546,0.19098488,111120.0,111110.0,0.5820114]
[1757241100749,0.19098488,111120.0,111110.0,0.7309314]
[1757241101357,0.19098488,111120.0,111110.0,0.9109332]
[1757241101748,0.19098488,111120.0,111110.0,0.7309314]
[1757241105464,0.19098488,111120.0,111110.0,0.70392]
[1757241108585,0.19098488,111120.0,111110.0,0.8839218]
[1757241110787,0.1890104,111120.0,111110.0,0.9186818]
[1757241111006,0.1890104,111120.0,111110.0,0.94569319]
[1757241123566,0.18777352,111130.0,111110.0,0.94569319]
[1757241123751,0.18777352,111130.0,111120.0,0.15434982]
[1757241123947,0.18777352,111130.0,111120.0,0.15632982]
[1757241124778,0.18877352,111130.0,111120.0,0.15632982]
[1757241125191,0.18777352,111130.0,111120.0,0.15632982]
[1757241125616,0.18877352,111130.0,111120.0,0.15632982]
[1757241125784,0.18877352,111130.0,111120.0,0.15408]
[1757241125987,0.18877352,111130.0,111120.0,0.15632982]
[1757241127722,0.18877352,111130.0,111120.0,0.00744982]
[1757241128016,0.18877352,111130.0,111120.0,0.0052]
[1757241128243,0.18877352,111130.0,111120.0,0.00744982]
[1757241130782,0.18877352,111130.0,111120.0,0.0052]
[1757241133794,0.001,111130.0,111120.0,0.13348581]
[1757241134797,0.001,111130.0,111120.0,0.16049283]
[1757241134947,0.1809694,111130.0,111120.0,0.16049283]
[1757241135148,0.1809694,111130.0,111120.0,0.15824301]
[1757241139052,0.1809694,111130.0,111120.0,0.30716301]
[1757241139278,0.1809694,111130.0,111120.0,0.15824301]
[1757241139496,0.1809694,111130.0,111120.0,0.30716301]
[1757241148861,0.1809694,111130.0,111120.0,0.15824301]
[1757241149104,0.1809694,111130.0,111120.0,0.30712301]
[1757241150418,0.1809694,111130.0,111120.0,0.15824301]
[1757241150584,0.1809694,111130.0,111120.0,0.30712301]
[1757241154962,0.1809694,111130.0,111120.0,0.15824301]
[1757241155180,0.1809694,111130.0,111120.0,0.30712301]
[1757241164811,0.1809694,111130.0,111120.0,0.15824301]
[1757241165131,0.1809694,111130.0,111120.0,0.30712301]
[1757241168331,0.1809694,111130.0,111120.0,0.30712301]
[1757241172454,0.1805504,111130.0,111120.0,0.30712301]
[1757241180224,0.1805504,111130.0,111120.0,0.15824301]
[1757241180493,0.1805504,111130.0,111120.0,0.30708301]
[1757241181494,0.1805504,111130.0,111120.0,0.15824301]
[1757241181688,0.1805504,111130.0,111120.0,0.30708301]
[1757241187809,0.1805504,111130.0,111120.0,0.31613773]
[1757241189591,0.1805504,111130.0,111120.0,0.30708301]
[1757241191935,0.1805504,111130.0,111120.0,0.31613226]
[1757241196439,0.1799694,111130.0,111120.0,0.31613226]
[1757241197671,0.1799694,111130.0,111120.0,0.31274919]
[1757241198083,0.1799694,111130.0,111120.0,0.30369994]
[1757241199100,0.1799694,111130.0,111120.0,0.30469994]
[1757241199691,0.1799694,111130.0,111120.0,0.30766994]
[1757241209766,0.1799694,111130.0,111120.0,0.30428967]
[1757241210005,0.1799694,111130.0,111120.0,0.30642967]
[1757241221905,0.1799694,111130.0,111120.0,0.30304927]
[1757241228218,0.1820094,111130.0,111120.0,0.02800702]
[1757241228437,0.21226938,111130.0,111120.0,0.001]
[1757241230666,0.36110938,111130.0,111120.0,0.001]
[1757241232481,0.21226938,111130.0,111120.0,0.001]
[1757241233951,0.21226938,111130.0,111120.0,1e-08]
[1757241242136,0.20901938,111130.0,111120.0,1e-08]
[1757241242363,0.21226938,111130.0,111120.0,1e-08]
[1757241244954,0.1799856,111120.0,111110.0,0.79815998]
[1757241245163,0.1799856,111120.0,111110.0,0.89206597]
[1757241246586,0.1799856,111120.0,111110.0,0.89506597]
[1757241249246,0.20699575,111120.0,111110.0,0.86805599]
[1757241251989,0.20699575,111120.0,111110.0,0.89506614]
[1757241252832,0.20699575,111120.0,111110.0,0.94805496]
[1757241253188,0.1799856,111120.0,111110.0,0.94805496]
[1757241255288,0.1799856,111120.0,111110.0,0.77827614]
[1757241255497,0.1819656,111120.0,111110.0,0.69199614]
[1757241256109,0.1819656,111120.0,111110.0,0.54299614]
[1757241256311,0.1849756,111120.0,111110.0,0.69203614]
[1757241256757,0.1819656,111120.0,111110.0,0.69203614]
[1757241257710,0.20897576,111120.0,111110.0,0.69203614]
[1757241258828,0.20699576,111120.0,111110.0,0.69506614]
[1757241267301,0.20699576,111120.0,111110.0,0.72711614]
[1757241270249,0.20699576,111120.0,111110.0,0.74512614]
[1757241270406,0.20699576,111120.0,111110.0,0.72711614]
[1757241271494,0.1799856,111120.0,111110.0,0.72711614]
[1757241272696,0.20699575,111120.0,111110.0,0.72711614]
[1757241274475,0.1799856,111120.0,111110.0,0.70010599]
[1757241279653,0.1799856,111120.0,111110.0,0.63102599]
[1757241290591,0.1799856,111120.0,111110.0,0.85196481]
[1757241291279,0.1799856,111120.0,111110.0,0.94897211]
[1757241291955,0.1799694,111130.0,111110.0,0.94897211]
[1757241292181,0.1799694,111130.0,111120.0,0.23971113]
[1757241292371,0.1799694,111130.0,111120.0,0.28636949]
[1757241292589,0.1799694,111130.0,111120.0,0.28837949]
[1757241295024,0.1799694,111130.0,111120.0,0.28937949]
[1757241298804,0.1799694,111130.0,111120.0,0.35845949]
[1757241304106,0.1799694,111130.0,111120.0,0.35507829]
[1757241312130,0.1799694,111130.0,111120.0,0.35515829]
[1757241314415,0.1819594,111130.0,111120.0,0.17244829]
[1757241314643,0.1819594,111130.0,111120.0,0.32148829]
[1757241314842,0.1819594,111130.0,111120.0,0.32446829]
[1757241315258,0.1819594,111130.0,111120.0,0.32148829]
[1757241316607,0.1819594,111130.0,111120.0,0.3180344]
[1757241316863,0.1819594,111130.0,111120.0,0.3210144]
[1757241317925,0.1819594,111130.0,111120.0,0.2519344]
[1757241322476,0.1848894,111130.0,111120.0,0.2469444]
[1757241323056,0.1848894,111130.0,111120.0,0.2490544]
[1757241326589,0.1819594,111130.0,111120.0,0.2490544]
[1757241328617,0.1819594,111130.0,111120.0,0.24567402]
[1757241328831,0.1819594,111130.0,111120.0,0.24865402]
[1757241334964,0.1848894,111130.0,111120.0,0.24356402]
[1757241335326,0.1848894,111130.0,111120.0,0.24567402]
[1757241335527,0.1819594,111130.0,111120.0,0.24567402]
[1757241336195,0.1819594,111130.0,111120.0,0.24865402]
[1757241337860,0.1819594,111130.0,111120.0,0.24567402]
[1757241338241,0.1819594,111130.0,111120.0,0.24890402]